Cogmind - Beta 14 @@@ ROGUE MODE // 2024.08.16 @ 23:14:16 Player: TheProctologist Result: Destroyed by VU-VQU(R) with Subdweller Beam Cannon Performance ------------- Evolutions (0) 0 Regions Visited (3) 600 Robots Destroyed (38) 190 Value Destroyed (899) 899 Prototype IDs (0) 0 Alien Tech Used (0) 0 Bonus (0) 0 TOTAL SCORE: 1689 Bonus ------- None Cogmind --------- Core Integrity 0/250 Matter 300/300 Energy 125/125 System Corruption 0% Temperature Cool (9) Movement Core (600) Ox11 Location -10/Subcaves Parts ------- > --- POWER (1) -------- Light Ion Engine > --- PROPULSION (2) --- (None) > --- UTILITY (2) ------ Large Storage Unit Hardened Light Armor Plating > --- WEAPON (2) ------- Subdweller Beam Cannon > --- INVENTORY (15) --- Light Nuclear Core Medium Matter Pod (100) Structural Scanner Experimental Sensor Array Tractor Beam Subdweller Laser Subdweller Laser Battle Rifle Datajack Mining Laser Welding Torch Mining Claw Peak State ------------ > --- POWER ------------ Light Nuclear Core > --- PROPULSION ------- Light Treads Light Treads > --- UTILITY ---------- Large Storage Unit Structural Scanner > --- WEAPON ----------- Heavy EM Pulse Gun Heavy EM Pulse Gun > --- INVENTORY -------- Light Nuclear Core Heat Sink Hardened Light Armor Plating Tractor Beam Datajack Welding Torch Mining Claw [Rating: 12] Favorites ----------- Power Light Ion Engine Engine Light Ion Engine Power Core Light Nuclear Core Propulsion Light Treads Treads Light Treads Utility Large Storage Unit Device Structural Scanner Storage Large Storage Unit Protection Hardened Light Armor Plating Weapon Heavy EM Pulse Gun Energy Gun Heavy EM Pulse Gun Energy Cannon Beam Cannon Ballistic Gun Assault Rifle Launcher Subdweller Shrapnel Launcher Build | -11 -10 -10 -10 ------- Run | Yrd Mat Min Sub Slots Evolved . | . . . . Power . | . . . . Propulsion . | . . . . Utility . | . . . . Weapon . | . . . . Parts Attached 31 | 7 13 5 6 Power 8 | 1 4 2 1 Engine 5 | 1 3 . 1 Core 3 | . 1 2 . Reactor . | . . . . Propulsion 4 | 2 2 . . Treads 4 | 2 2 . . Leg . | . . . . Wheel . | . . . . Hover . | . . . . Flight . | . . . . Utility 7 | 2 3 1 1 Device 3 | 1 1 1 . Storage 3 | 1 2 . . Processor . | . . . . Hackware . | . . . . Protection 1 | . . . 1 Artifact . | . . . . Weapon 12 | 2 4 2 4 Energy Gun 7 | 1 4 1 1 Energy Cannon 3 | . . 1 2 Ballistic Gun 1 | 1 . . . Ballistic Cannon . | . . . . Launcher 1 | . . . 1 Special Weapon . | . . . . Impact Weapon . | . . . . Slashing Weapon . | . . . . Piercing Weapon . | . . . . Special Melee Weapon . | . . . . Unidentified Prototypes . | . . . . Parts Lost 14 | . 2 4 8 Power 4 | . 1 2 1 Propulsion 2 | . . . 2 Utility 1 | . . . 1 Weapon 7 | . 1 2 4 Highest Loss Streak 3 | . 2 3 3 To Critical Strikes . | . . . . Average Slot Usage (%) 88 | . 92 99 67 Engine 6 | . 7 7 3 Core 4 | . . 6 7 Treads 21 | . 27 28 5 Device 12 | . 14 14 6 Storage 14 | . 14 14 14 Energy Gun 18 | . 24 19 8 Energy Cannon 7 | . . 8 14 Ballistic Gun 1 | . 3 . . Launcher 1 | . . . 4 Peak Build Rating 12 | 7 12 11 12 Average Rating 9 | 5 8 10 9 On Entrance 7 | . 7 10 11 Naked Turns . | . . . . Heaviest Build 44 | 12 32 31 44 Greatest Support 40 | 40 40 40 40 Greatest Overweight (x) 14 | 1 . . 14 Average Overweight (x) . | . . . 6 Largest Inventory Capacity 15 | 8 15 15 15 Average Capacity 13 | 7 10 15 15 Most Carried 15 | 4 10 13 15 Average Carried 9 | 1 7 10 12 Final Capacity 15 | 8 15 15 15 Final Carried 12 | 4 10 10 12 Class Distribution -------------------- 100% | Mutant Dominant Class ---------------- Mutant | -10/Materials Mutant | -10/Mines Mutant | -10/Subcaves Resources | -11 -10 -10 -10 ----------- Run | Yrd Mat Min Sub Matter Collected 780 | 247 202 151 180 Remotely 200 | 117 83 . . Salvage Created 1320 | 86 680 287 267 Parts 85 | 6 45 21 13 Haulers Intercepted 2 | . 2 . . Recyclers Shooed 2 | . 2 . . Parts Field Recycled . | . . . . Retrieved Matter . | . . . . Parts Self-Destructed . | . . . . Prevented . | . . . . Kills | -11 -10 -10 -10 ------- Run | Yrd Mat Min Sub Combat Hostiles Destroyed 27 | . 10 10 7 Guns 16 | . 9 6 1 Cannons 6 | . . 3 3 AOE 4 | . 1 . 3 Classes Destroyed 10 | 2 7 . 1 Worker 1 | . 1 . . Builder 1 | . 1 . . Tunneler 1 | 1 . . . Hauler 2 | . 2 . . Recycler 3 | 1 2 . . Operator 1 | . 1 . . Watcher 2 | . 2 . . Swarmer 9 | . 3 6 . Grunt 11 | . 7 4 . Subdweller 7 | . . . 7 Best Kill Streak 5 | 2 5 3 2 Combat Bots Only 3 | . 2 3 2 Max Kills in Single Turn 1 | 1 1 1 1 Gunslinging . | . . . . Exploded 1 | . 1 . 1 Melee . | . . . . Uniques/NPCs Destroyed . | . . . . Combat | -11 -10 -10 -10 -------- Run | Yrd Mat Min Sub Hostile Shots Fired 132 | . 39 40 53 Missed 47 | . 13 11 23 Damage Taken 1492 | . 362 335 795 Core 262 | . 103 39 120 Absorbed by Shields . | . . . . Core Remaining (%) 100 | 100 . . . Volleys Fired 96 | 4 41 26 25 Largest 2 | 2 2 2 2 Hottest 160 | 60 90 110 160 Shots Fired 185 | 8 80 52 45 Gun 143 | 8 80 40 15 Cannon 35 | . . 12 23 Launcher 7 | . . . 7 Special . | . . . . Kinetic 27 | 4 16 . 7 Thermal 73 | 4 14 17 38 Explosive . | . . . . Electromagnetic 85 | . 50 35 . Robot Hit Streak 19 | 7 9 12 19 Robot Miss Streak 3 | . 3 3 1 Penetration Max . | . . . . Secondary Targets 1 | . 1 . . Max Gunslinging Chain 1 | . 1 . . Shots Hit Robots 120 | 7 49 29 35 Core Hits 51 | 3 25 12 11 Critical Kills . | . . . . Critical Parts Destroyed . | . . . . Critical Strikes 3 | . . 1 2 Burn 3 | . . 1 2 Melee Attacks . | . . . . Impact . | . . . . Slashing . | . . . . Piercing . | . . . . Sneak Attacks . | . . . . Combat Hostiles . | . . . . Follow-up Attacks . | . . . . Damage Inflicted 2178 | 81 775 449 873 Guns 1226 | 81 727 282 136 Cannons 477 | . . 156 321 Explosions 464 | . 48 . 416 Melee . | . . . . Ramming 11 | . . 11 . Kinetic 612 | 38 158 . 416 Thermal 898 | 43 180 218 457 Explosive . | . . . . Electromagnetic 657 | . 437 220 . Impact . | . . . . Slashing . | . . . . Piercing . | . . . . Highest Corruption . | . . . . Average Corruption . | . . . . Corruption Purged . | . . . . Corruption Blocked . | . . . . Overload Shots . | . . . . Overflow Damage 27 | . 16 . 11 Projectiles . | . . . . Explosions 27 | . 16 . 11 Melee . | . . . . Knockbacks . | . . . . Impact . | . . . . Kinetic . | . . . . Secondary . | . . . . Self-Inflicted Damage 179 | . 90 . 89 Shots 8 | . 3 . 5 Rammed 3 | . . 3 . Targets Rammed 3 | . . 3 . Kicked . | . . . . Crushed . | . . . . Highest Temperature 251 | . 144 251 60 Average Temperature 62 | . 42 91 17 Received Heat Transfer 435 | . 96 150 189 Siege Activations . | . . . . Robots Corrupted . | . . . . Combat Hostiles . | . . . . Parts Fried 1 | . 1 . . Impact Corruptions . | . . . . Robots Melted 1 | . . 1 . Combat Hostiles 1 | . . 1 . Parts Melted 4 | . . 1 3 Heat Transferred 2065 | 100 300 592 1073 Parts Sabotaged . | . . . . Parts Stolen . | . . . . Parts Stripped . | . . . . Power Chain Reactions 3 | . 3 . . Alert | -11 -10 -10 -10 ------- Run | Yrd Mat Min Sub Peak Influence 188 | 10 188 163 . Initial 43 | . 6 43 . Average 65 | 3 63 72 . Maximum Alert Level . | . . . . Low Security (%) 100 | 100 100 100 . Level 1 . | . . . . Level 2 . | . . . . Level 3 . | . . . . Level 4 . | . . . . Level 5 . | . . . . High Security . | . . . . Max Security . | . . . . Squads Dispatched 1 | . 1 . . Investigation 1 | . 1 . . Extermination . | . . . . Reinforcement . | . . . . Assault . | . . . . Garrison . | . . . . Intercept . | . . . . Searches Triggered . | . . . . Construction Impeded . | . . . . Haulers Reinforced . | . . . . Active Scanning Responses . | . . . . Cargo Convoy Interrupts . | . . . . Stealth | -11 -10 -10 -10 --------- Run | Yrd Mat Min Sub Distress Signals 1 | . 1 . . Communications Jammed . | . . . . Distress Signals . | . . . . Times Spotted 35 | . 15 11 9 Peak Tracking Total 3 | . 2 3 3 Tactical Retreats 3 | . 2 1 . Traps | -11 -10 -10 -10 ------- Run | Yrd Mat Min Sub Traps Triggered 3 | . 3 . . Indirectly . | . . . . Trap Hack Attempts . | . . . . Triggered . | . . . . Disarmed . | . . . . Reprogrammed . | . . . . Reused . | . . . . Traps Extracted . | . . . . Installed . | . . . . Triggered . | . . . . Machines | -11 -10 -10 -10 ---------- Run | Yrd Mat Min Sub Machines Disabled 2 | . 2 . . Max in Single Turn 1 | . 1 . . Machines Repaired . | . . . . Machines Dismantled . | . . . . Machines Sabotaged . | . . . . Overloaded Fab Kills . | . . . . Hacking | -11 -10 -10 -10 --------- Run | Yrd Mat Min Sub Machines Accessed 3 | . 3 . . Terminals 3 | . 3 . . Fabricators . | . . . . Repair Stations . | . . . . Recycling Units . | . . . . Scanalyzers . | . . . . Garrison Access . | . . . . Total Hacks 13 | . 13 . . Successful 4 | . 4 . . Failed 9 | . 9 . . Catastrophic 1 | . 1 . . Database Lockouts . | . . . . Manual 5 | . 5 . . Terminals 13 | . 13 . . Fabricators . | . . . . Repair Stations . | . . . . Recycling Units . | . . . . Scanalyzers . | . . . . Garrison Access . | . . . . Terminal Hacks 4 | . 4 . . Record 1 | . 1 . . Branch Access Points 1 | . 1 . . Locate Traps 1 | . 1 . . Zone Layout 1 | . 1 . . Fabricator Hacks . | . . . . Repair Station Hacks . | . . . . Recycling Unit Hacks . | . . . . Scanalyzer . | . . . . Garrison Access Hacks . | . . . . Unauthorized Hacks . | . . . . Terminals . | . . . . Fabricators . | . . . . Repair Stations . | . . . . Recycling Units . | . . . . Scanalyzers . | . . . . Garrison Access . | . . . . Data Cores Recovered 1 | . 1 . . Used . | . . . . Hacking Detections 2 | . 2 . . Full Trace Events . | . . . . Feedback Events . | . . . . Feedback Blocked . | . . . . Robot Schematics Acquired . | . . . . Robots Built . | . . . . Authchips . | . . . . Time . | . . . . Total Robot Build Rating . | . . . . Part Schematics Acquired . | . . . . Parts Built . | . . . . Authchips . | . . . . Time . | . . . . Total Part Build Rating . | . . . . Parts Repaired . | . . . . Time . | . . . . Parts Recycled . | . . . . Recycled Matter . | . . . . Retrieved Matter . | . . . . Retrieved Components . | . . . . Parts Scanalyzed . | . . . . Part Schematics Acquired . | . . . . Parts Damaged . | . . . . Bothacking | -11 -10 -10 -10 ------------ Run | Yrd Mat Min Sub Used RIF Installer . | . . . . Robots Hacked . | . . . . Non-combat . | . . . . Combat . | . . . . Robot Hacks Applied . | . . . . Relay Couplers Released . | . . . . Fabnet Peak Effective % . | . . . . Robots Rewired . | . . . . Allies Hacked . | . . . . Hacks Repelled . | . . . . Allies | -11 -10 -10 -10 -------- Run | Yrd Mat Min Sub Total Allies . | . . . . Largest Group . | . . . . Highest-Rated Group . | . . . . Highest-Rated Ally . | . . . . Total Orders . | . . . . Ally Attacks . | . . . . Total Damage . | . . . . Kills . | . . . . Allies Corrupted . | . . . . Allies Melted . | . . . . Intel | -11 -10 -10 -10 ------- Run | Yrd Mat Min Sub Robot Analysis Total . | . . . . Derelict Logs Recovered 2 | . . 2 . Drone Launches . | . . . . Drone Recoveries . | . . . . Exploration | -11 -10 -10 -10 ------------- Run | Yrd Mat Min Sub Turns Passed 2973 | 84 977 1134 778 Spaces Moved 1353 | 44 507 640 162 Core 106 | 11 . . 95 Treads 1247 | 33 507 640 67 Legs . | . . . . Wheels . | . . . . Hover . | . . . . Flight . | . . . . Fastest Speed 50 | 50 160 160 160 Average Speed 191 | 133 160 160 427 Slowest Speed 750 | 160 160 160 750 Overloaded Moves . | . . . . Propulsion Burnouts . | . . . . Robots Hopped . | . . . . Cave-ins Triggered . | . . . . Exploration Rate (%) 48 | 4 71 99 19 Regions Visited 3 Branch Regions 2 Pre-discovered Areas 1 | . . 1 . Known Exits Taken 1 | . 1 . . Unknown Exits Taken 2 | 1 . 1 . Scrap Searched 4 | . . 1 3 Spaces Dug . | . . . . Terrain Destroyed 59 | . 5 . 54 Melee . | . . . . Projectile 4 | . . . 4 AOE 55 | . 5 . 50 Terrain Rammed . | . . . . Walls Destroyed . | . . . . Machines Disabled . | . . . . Actions | -11 -10 -10 -10 --------- Run | Yrd Mat Min Sub Total 1555 | 58 593 696 208 Wait 34 | . 10 18 6 Move 1350 | 43 506 639 162 Hop . | . . . . Pick Up 29 | 4 13 4 8 Fast Attach 14 | 7 6 1 . Attach 10 | . 2 3 5 Detach . | . . . . Swap 7 | . 5 1 1 Drop 12 | . 10 1 1 Fire 96 | 4 41 26 25 Melee . | . . . . Ram . | . . . . Kick . | . . . . Crush 3 | . . 3 . Escape Stasis . | . . . . Rewire . | . . . . Trap . | . . . . Miscellaneous . | . . . . Route ------- -11/Scrapyard -10/Materials (discovered 4 exits: [*Mat x2] / *Min x2) -10/Mines (discovered 3 exits: [*Mat x2] / [*Sub]) -10/Subcaves (discovered 1 exit: [*Mat]) History --------- Turn | Location | Event 6 | -11/Scrapyard | Discovered new exit (range 15) 85 | -11/Scrapyard | Entered Materials 351 | -10/Materials | Build established: Mutant 470 | -10/Materials | Discovered new exit (range 10) 471 | -10/Materials | Discovered new exit (range 7) 556 | -10/Materials | Discovered new exit (range 16) 697 | -10/Materials | Discovered new exit (range 5) 911 | -10/Materials | Identified exit to Mines 1062 | -10/Materials | Entered Mines 1279 | -10/Mines | Core integrity fell below 50% 1358 | -10/Mines | Discovered new exit (range 13) 1650 | -10/Mines | Learned Materials stockpile data 1658 | -10/Mines | Discovered new exit (range 6) 1732 | -10/Mines | Lost 3 parts (2p1w) 1926 | -10/Mines | Found a damaged Exp. Sensor Array with a note attached 1930 | -10/Mines | Found Prototype Device 2183 | -10/Mines | Discovered new exit (range 6) 2196 | -10/Mines | Entered Subcaves 2202 | -10/Subcaves | Shifting Twisted Machinery released Mak. Flight Unit 2206 | -10/Subcaves | Discovered new exit (range 13) 2223 | -10/Subcaves | Shifting Twisted Machinery released Sub. Beam Cannon 2382 | -10/Subcaves | Lost 3 parts (2n1w) 2385 | -10/Subcaves | Core integrity fell below 20% 2612 | -10/Subcaves | Lost 3 parts (1p1u1w) 2974 | -10/Subcaves | Destroyed by VU-VQU(R) with Subdweller Beam Cannon Last Messages --------------- 02638_ Acquired Sub. Beam Cannon. 02644_ Acquired Sub. Laser. 02650_ Searching scrap... 02650_ Found Battle Rifle. 02650_ Found Shrapnel Trap. 02650_ Found 69 Matter. 02651_ Acquired 19 matter. 02660_ Acquired Battle Rifle. 02666_ Searching scrap... 02666_ Found Piercing Trap. 02666_ Found Sub. Laser. 02666_ Found 67 Matter. 02676_ Dropped Sub. Laser. 02676_ Acquired Sub. Laser. 02912_ Med. Laser destroyed. 02938_ Sub. Beam Cannon shoots sparks and powers down. 02938_ WJ-I1R(R) destroyed. 02941_ Acquired 25 matter. 02970_ Broken Sub. Beam Cannon destroyed. Map ----- +----------------------------------------------------+ | ????????????????????????????????????????????????? | | ????????????????????????????????????????????????? | | ????????????????????????????????????????????????? | | ????????????????????????????????????????????????? | | ????????????????????????????????????????????????? | | ????????????????????????????????????????????????? | | ????????????????????????????????????????????????? | | ????????????????????????????????????????????????? | | ????????????????????????????????????????????????? | | ????????????????????????????????????????????????? | | ????????????????????????????????????????????????? | | ????????????????????????????????????????????????? | | ????????????????????????????????????????????????? | | ????????????????????????????????????????????????? | | ??????????????????" ????????????????????????????? | | ?????????????????? " ???????????????????????????? | | ??????????????????? ????????????? ?????????? | | ??????????????????? #??????????## ????????? | | ???????????????????? "##??####?## #??????? | | ????????????????????" " ## # ### #??????? | | ????????????????????? ? ???????? | | ?????????????????????? ??? #???????? | | ??????????????????????# $#???# #??###### | | ?????????????????????## #???# ???#%#""" | | ????????????????????## #???# ????# "[ " | | ????????????????????# @ ###??# #????#&&# | | ????????????????????# ;; #??# ##???#"%# " | | ????????????????????## &*;#?? ###### " | | ?????????????????????## ##R##???# ## ##### | | ??????????????????????####&]#??### ### | | ?????????????????????????##&#### #?# | | ????????????????????????## # ### | | ?????????????????????#### ## # | | ?????????????????????# ## # | | ????????????????????# ### ##### | | ????????????????????# ###?###??## | | ????????????????????# #????????# ## | | ????????????????????## #????????# #####? | | ?????????????????????###?????????## #????? | | ??????????????????????????????????##########????? | | ????????????????????????????????????????????????? | | ????????????????????????????????????????????????? | | ????????????????????????????????????????????????? | | ????????????????????????????????????????????????? | | ????????????????????????????????????????????????? | | ????????????????????????????????????????????????? | | ????????????????????????????????????????????????? | | ????????????????????????????????????????????????? | | ????????????????????????????????????????????????? | | ????????????????????????????????????????????????? | +----------------------------------------------------+ Best States ------------- Heat Dissipation 35 Energy Generation 14 Energy Capacity 160 Matter Stores 300 Matter Capacity 300 Sight Range 16 Terrain Scan Density 10 Armor Coverage 150 Evasion (%) 40 Recoil Reduction 2 Item Schematics ----------------- None Robot Schematics ------------------ None Fabricated ------------ Nothing Alien Tech Used ----------------- None Achievements -------------- None Challenges ------------ None Game ------ Seed MagneticDroneFocus Manual? 0 Play Time 00:26:04 Cumulative 27.4 hours Start 2024.08.16 @ 22:50:30 End 2024.08.16 @ 23:14:16 Sessions 1 Manual Loads 0 Difficulty Rogue Special Mode None Game No. 39 Rogue 39 Adventurer 0 Explorer 0 Win Type - Total 0 Types 0/0/0/0/0/0/0/0/0 Lore% 8 Gallery% 19 Achievement% 16 Wizard Run 0 Options --------- Layout 1 ASCII 0 Keyboard 0 Movement Numpad Keybinds 0 Fullscreen 1 Font 32/SmallcapsGlow Map View 50x40 Zoom Use 14% Tactical HUD 1 Map Filters NONE Filters NONE Steam 1 RUN: 795e64a1-56e5-45ac-b6fd-c2864c467f78